fUSD/lending_fUSD_20240616
["ID","MTS","AMOUNT","RATE_DAILY","PERIOD"]
[329609968,1718503833838,-156.10569246,0.00014999,2]
[329609969,1718503833878,-1332.15390778,0.00014999,2]
[329609970,1718503833910,-489.43311663,0.00014999,2]
[329609971,1718503833929,-1466.93951903,0.00014999,2]
[329609972,1718503833950,-301.93630718,0.00014999,2]
[329609973,1718503833972,-356.32,0.000167,2]
[329609974,1718503834005,-3600.0,0.000167,2]
[329609975,1718503834032,-674.14,0.00016809,2]
[329609976,1718503834045,-1840.623,0.00017091,2]
[329609977,1718503834060,-300.457,0.0001781,2]
[329609978,1718503834071,-2109.388,0.0001781,2]
[329609979,1718503834083,-500.0,0.000185,2]
[329609980,1718503834104,-351.86,0.00018799,2]
[329609981,1718503834123,-1000.0,0.00018817,2]
[329609982,1718503834137,-151.77,0.00018826,2]
[329609983,1718503834150,-250.0,0.00018838,2]
[329609984,1718503834172,-4477.57,0.00018867,2]
[329609985,1718503834188,-2491.000409,0.00018955,2]
[329609986,1718503834244,-2187.347641,0.00018955,2]
[329609987,1718503834257,-181.338442,0.00018955,2]
[329609988,1718503834281,-191.532806,0.00018955,2]
[329609989,1718503834310,-177.813858,0.00018955,2]
[329609990,1718503834325,-250.0,0.00018984,2]
[329609991,1718503834340,-729.27546915,0.00019,2]
[329609992,1718503834351,-500.0,0.00019005,2]
[329609993,1718503834366,-170.82,0.00019027,2]
[329609994,1718503834380,-674.14,0.00019073,2]
[329609995,1718503834393,-1010.85899709,0.00019191,2]
[329609996,1718503834424,-2491.000409,0.00019192,2]
[329609997,1718503834435,-2187.347641,0.00019192,2]
[329609998,1718503834446,-10090.86,0.00019262,2]
[329609999,1718503834457,-170.82,0.00019357,2]
[329610000,1718503834469,-2491.000409,0.00019429,2]
[329610001,1718503834484,-2187.347641,0.00019429,2]
[329610002,1718503834500,-177.813858,0.00019429,2]
[329610003,1718503834514,-191.532806,0.00019429,2]
[329610005,1718503834530,-2491.000409,0.00019666,2]
[329610006,1718503834547,-2187.347641,0.00019666,2]
[329610007,1718503834563,-170.82,0.00019688,2]
[329610009,1718503834573,-1018.51061009,0.00019799,2]
[329610012,1718503834597,-13093.7651,0.000198,2]
[329610013,1718503834623,-2999.9033,0.000199,2]
[329610014,1718503834636,-690.2682,0.000199,2]
[329610015,1718503834651,-3147.3465,0.000199,2]
[329610016,1718503834663,-268.798,0.000199,2]
[329610017,1718503834673,-2491.000409,0.00019903,2]
[329610018,1718503834690,-181.338442,0.00019903,2]
[329610019,1718503834704,-2187.347641,0.00019903,2]
[329610020,1718503834717,-177.813858,0.00019903,2]
[329610021,1718503834741,-191.532806,0.00019903,2]
[329610022,1718503834760,-208.92961392,0.00019999,2]
[329610023,1718503834792,-3847.68818062,0.0002,2]
[329610024,1718503834806,-1782.65765508,0.0002,2]
[329610025,1718503834819,-979.0,0.0002,2]
[329610027,1718503834841,-187.77928612,0.0002,2]
[329610028,1718503834874,-155.0,0.0002,2]
[329610030,1718503834905,-155.0,0.00020015,2]
[329610031,1718503834924,-170.82,0.00020018,2]
[329610032,1718503834944,-550.01737273,0.00020876,2]
[329610033,1718503834961,-6270.52442089,0.00020877,2]
[329610034,1718503835004,-34112.0,0.00020878,2]
[329610035,1718503835016,-1250.0,0.00021,2]
[329610036,1718503835030,-526.95,0.00021096,2]
[329610037,1718503835047,-202.011918,0.000211,2]
[329610038,1718503835059,-1000.0,0.00021169,2]
[329610039,1718503835089,-430.06873253,0.00021234,2]
[329610040,1718503835109,-674.14,0.00021337,2]
[329610041,1718503835121,-351.86,0.00021539,2]
[329610042,1718503835152,-1831.2748,0.000217,2]
[329610043,1718503835189,-420.5517,0.00021705,2]
[329610044,1718503835287,-8434.63254676,0.00021705,2]
[329610045,1718503835803,-4940.190102,0.00021705,2]
[329610046,1718503835819,-2960.75103134,0.00021705,2]
[329610047,1718503836111,-4121.07153573,0.00021705,2]
[329610048,1718503836126,-4955.74538417,0.00021705,2]
[329610049,1718503836138,-1348.5169,0.00021705,2]
[329610050,1718503836190,-877.2708,0.00021814,2]
[329610051,1718503836235,-14468.33798426,0.00021814,2]
[329610052,1718503836253,-1133.16129937,0.00021814,2]
[329610053,1718503836310,-4588.58041637,0.00021814,2]
[329610054,1718503836329,-442.2416,0.00021815,2]
[329610055,1718503836348,-1000.0,0.00021817,2]
[329610056,1718503836369,-3586.11609441,0.00021817,2]
[329610057,1718503836400,-6413.88390559,0.00021817,2]
[329610058,1718503836434,-1000.0,0.00021817,2]
[329610059,1718503836462,-4768.89742263,0.00021817,2]
[329610060,1718503836483,-2394.52477737,0.00021817,2]
[329610061,1718503836500,-170.41117188,0.00021817,2]
[329610062,1718503836524,-322.78190181,0.00021817,2]
[329610063,1718503836540,-4696.40043776,0.00021891,2]
[329610064,1718503836553,-4645.23945411,0.00021895,2]
[329610065,1718503836566,-5423.16704567,0.00021914,2]
[329610066,1718503836577,-10574.83217341,0.00021915,2]
[329610067,1718503836588,-243.38250842,0.00021915,2]
[329610068,1718503836602,-331.7022993,0.00021915,2]
[329610069,1718503836618,-1225.22384467,0.00021915,2]
[329610070,1718503836660,-155.38533941,0.00021915,2]
[329610071,1718503836685,-393.64954236,0.00021915,2]
[329610072,1718503836707,-241.30635775,0.00021915,2]
[329610073,1718503836730,-171.12617703,0.00021915,2]
[329610074,1718503836758,-155.44770463,0.00021915,2]
[329610075,1718503836785,-791.06215081,0.00021915,2]
[329610076,1718503836818,-309.94258699,0.00021915,2]
[329610077,1718503836831,-300.0907348,0.00021915,2]
[329610078,1718503836843,-2839.45923237,0.00021915,2]
[329610079,1718503836854,-155.46434522,0.00021915,2]
[329610080,1718503836866,-155.31140521,0.00021915,2]
[329610081,1718503836880,-239.05445446,0.00021915,2]
[329610082,1718503836891,-1000.0,0.00021916,2]
[329610083,1718503836902,-466.15221259,0.00021916,2]
[329610084,1718503836912,-238.12452827,0.00021916,2]
[329610085,1718503836925,-563.0,0.00021917,2]
[329610086,1718503836937,-647.72694905,0.00021917,2]
[329610087,1718503836950,-20349.54966466,0.00021917,2]
[329610088,1718503837012,-267.94276377,0.00021917,2]
[329610089,1718503837046,-500.0,0.00021917,2]
[329610090,1718503837095,-500.0,0.00021917,2]
[329610091,1718503837126,-500.0,0.00021917,2]
[329610092,1718503837147,-500.0,0.00021917,2]
[329610093,1718503837165,-500.0,0.00021917,2]
[329610094,1718503837195,-504.40211204,0.00021917,2]
[329610095,1718503837224,-500.0,0.00021917,2]
[329610096,1718503837242,-192.97788932,0.00021917,2]
[329610097,1718503837297,-505.80869666,0.00021917,2]
[329610098,1718503837336,-200.0,0.00021917,2]
[329610099,1718503837367,-164.69676135,0.00021917,2]
[329610100,1718503837402,-500.0,0.00021917,2]
[329610101,1718503837424,-500.0,0.00021917,2]
[329610102,1718503837440,-500.0,0.00021917,2]
[329610103,1718503837469,-500.0,0.00021917,2]
[329610104,1718503837502,-500.0,0.00021917,2]
[329610105,1718503837519,-500.0,0.00021917,2]
[329610106,1718503837546,-500.0,0.00021917,2]
[329610108,1718503837595,-525.18191636,0.00021917,2]
[329610110,1718503837621,-500.0,0.00021917,2]
[329610113,1718503837641,-500.0,0.00021917,2]
[329610114,1718503837661,-500.0,0.00021917,2]
[329610115,1718503837684,-500.0,0.00021917,2]
[329610116,1718503837712,-500.0,0.00021917,2]
[329610118,1718503837724,-742.85,0.00021917,2]
[329610119,1718503837752,-500.0,0.00021917,2]
[329610120,1718503837773,-500.0,0.00021917,2]
[329610121,1718503837789,-500.0,0.00021917,2]
[329610124,1718503837805,-579.26,0.00021917,2]
[329610125,1718503837842,-583.12393777,0.00021917,2]
[329610128,1718503837874,-530.42542127,0.00021917,2]
[329610131,1718503837897,-500.0,0.00021917,2]
[329610133,1718503837918,-500.0,0.00021917,2]
[329610135,1718503837933,-237.7655769,0.00021917,2]
[329610138,1718503837987,-262.2344231,0.00021917,2]
[329610140,1718503838009,-641.31653285,0.00021917,2]
[329610141,1718503838041,-98.87346715,0.00021917,2]
[329610143,1718503838052,-419.52674512,0.00021917,2]
[329610147,1718503838114,-80.47325488,0.00021917,2]
[329610150,1718503838168,-500.0,0.00021917,2]
[329610152,1718503838182,-692.5,0.00021917,2]
[329610155,1718503838223,-500.0,0.00021917,2]
[329610159,1718503838291,-500.0,0.00021917,2]
[329610163,1718503838326,-500.0,0.00021917,2]
[329610166,1718503838343,-500.0,0.00021917,2]
[329610169,1718503838360,-500.0,0.00021917,2]
[329610171,1718503838380,-500.0,0.00021917,2]
[329610175,1718503838405,-500.0,0.00021917,2]
[329610176,1718503838418,-500.0,0.00021917,2]
[329610178,1718503838437,-500.0,0.00021917,2]
[329610180,1718503838451,-500.0,0.00021917,2]
[329610182,1718503838464,-500.0,0.00021917,2]
[329610183,1718503838477,-500.0,0.00021917,2]
[329610185,1718503838496,-500.0,0.00021917,2]
[329610187,1718503838509,-500.0,0.00021917,2]
[329610189,1718503838526,-500.0,0.00021917,2]
[329610190,1718503838541,-500.0,0.00021917,2]
[329610192,1718503838563,-500.0,0.00021917,2]
[329610193,1718503838580,-539.25,0.00021917,2]
[329610195,1718503838595,-500.0,0.00021917,2]
[329610197,1718503838611,-500.0,0.00021917,2]
[329610199,1718503838629,-500.0,0.00021917,2]
[329610200,1718503838657,-290.3155002,0.00021917,2]
[329610201,1718503838675,-705.8544998,0.00021917,2]
[329610202,1718503838689,-475.57018264,0.00021917,2]
[329610203,1718503838815,-47.49596519,0.00021917,2]
[329610204,1718503838862,-766.91,0.00021917,2]
[329610205,1718503838878,-500.0,0.00021917,2]
[329610206,1718503838902,-500.0,0.00021917,2]
[329610207,1718503838925,-500.0,0.00021917,2]
[329610208,1718503838949,-500.0,0.00021917,2]
[329610209,1718503838964,-500.0,0.00021917,2]
[329610210,1718503838976,-500.0,0.00021917,2]
[329610211,1718503838989,-755.22,0.00021917,2]
[329610212,1718503839004,-500.0,0.00021917,2]
[329610213,1718503839018,-500.0,0.00021917,2]
[329610214,1718503839042,-500.0,0.00021917,2]
[329610215,1718503839059,-500.0,0.00021917,2]
[329610216,1718503839085,-510.83334185,0.00021917,2]
[329610217,1718503839106,-500.0,0.00021917,2]
[329610218,1718503839158,-500.0,0.00021917,2]
[329610219,1718503839183,-500.0,0.00021917,2]
[329610220,1718503839200,-500.0,0.00021917,2]
[329610221,1718503839216,-500.0,0.00021917,2]
[329610222,1718503839229,-500.0,0.00021917,2]
[329610223,1718503839246,-503.43776862,0.00021917,2]
[329610224,1718503839259,-500.0,0.00021917,2]
[329610225,1718503839277,-500.0,0.00021917,2]
[329610226,1718503839290,-751.13,0.00021917,2]
[329610227,1718503839304,-671.68,0.00021917,2]
[329610228,1718503839325,-500.0,0.00021917,2]
[329610229,1718503839341,-500.0,0.00021917,2]
[329610230,1718503839360,-500.0,0.00021917,2]
[329610231,1718503839376,-559.93,0.00021917,2]
[329610232,1718503839418,-553.03599165,0.00021917,2]
[329610233,1718503839444,-221.65400835,0.00021917,2]
[329610234,1718503839458,-500.0,0.00021917,2]
[329610235,1718503839482,-500.0,0.00021917,2]
[329610236,1718503839502,-500.0,0.00021917,2]
[329610237,1718503839517,-500.0,0.00021917,2]
[329610238,1718503839542,-500.0,0.00021917,2]
[329610239,1718503839557,-729.41,0.00021917,2]
[329610240,1718503839576,-500.0,0.00021917,2]
[329610242,1718503839596,-505.72768634,0.00021917,2]
[329610243,1718503839609,-692.86,0.00021917,2]
[329610244,1718503839627,-465.68616826,0.00021917,2]
[329610249,1718503840154,-38.46383174,0.00021917,2]
[329610250,1718503840176,-500.0,0.00021917,2]
[329610251,1718503840197,-10.23752028,0.00021917,2]
[329610252,1718503840287,-489.76247972,0.00021917,2]
[329610253,1718503840342,-500.0,0.00021917,2]
[329610254,1718503840362,-500.0,0.00021917,2]
[329610255,1718503840376,-427.03990971,0.00021917,2]
[329610256,1718503840399,-222.08009029,0.00021917,2]
[329610257,1718503840442,-500.0,0.00021917,2]
[329610258,1718503840455,-456.37942727,0.00021917,2]
[329610260,1718503842370,-43.62057273,0.00021917,2]
[329610261,1718503842387,-212.41160027,0.00021917,2]
[329610262,1718503842486,-292.16057256,0.00021917,2]
[329610263,1718503842498,-500.0,0.00021917,2]
[329610264,1718503842517,-535.32328415,0.00021917,2]
[329610265,1718503842529,-500.0,0.00021917,2]
[329610266,1718503842542,-100.75303829,0.00021917,2]
[329610268,1718503842658,-399.24696171,0.00021917,2]
[329610269,1718503842680,-278.97454303,0.00021917,2]
[329610270,1718503842731,-221.02545697,0.00021917,2]
[329610271,1718503842758,-738.94,0.00021917,2]
[329610272,1718503842772,-500.0,0.00021917,2]
[329610273,1718503842787,-512.463637,0.00021917,2]
[329610274,1718503842807,-217.59458475,0.00021917,2]
[329610275,1718503842823,-282.40541525,0.00021917,2]
[329610276,1718503842850,-340.4317397,0.00021917,2]
[329610279,1718503842891,-159.5682603,0.00021917,2]
[329610281,1718503842906,-500.0,0.00021917,2]
[329610283,1718503842923,-500.0,0.00021917,2]
[329610285,1718503842942,-326.43173952,0.00021917,2]
[329610289,1718503842999,-173.56826048,0.00021917,2]
[329610292,1718503843019,-500.0,0.00021917,2]
[329610294,1718503843057,-502.69331285,0.00021917,2]
[329610296,1718503843071,-500.0,0.00021917,2]
[329610299,1718503843105,-500.0,0.00021917,2]
[329610303,1718503843147,-500.0,0.00021917,2]
[329610305,1718503843169,-500.0,0.00021917,2]
[329610307,1718503843196,-500.0,0.00021917,2]
[329610308,1718503843240,-500.0,0.00021917,2]
[329610310,1718503843274,-638.00674422,0.00021917,2]
[329610313,1718503843312,-500.0,0.00021917,2]
[329610315,1718503843338,-500.0,0.00021917,2]
[329610316,1718503843352,-500.0,0.00021917,2]
[329610318,1718503843365,-500.0,0.00021917,2]
[329610320,1718503843378,-500.0,0.00021917,2]
[329610323,1718503843393,-500.0,0.00021917,2]
[329610325,1718503843412,-500.0,0.00021917,2]
[329610327,1718503843423,-500.0,0.00021917,2]
[329610328,1718503843437,-500.0,0.00021917,2]
[329610330,1718503843458,-500.0,0.00021917,2]
[329610333,1718503843478,-500.0,0.00021917,2]
[329610338,1718503843493,-500.0,0.00021917,2]
[329610340,1718503843504,-500.0,0.00021917,2]
[329610343,1718503843520,-500.0,0.00021917,2]
[329610344,1718503843532,-500.0,0.00021917,2]
[329610345,1718503843561,-500.0,0.00021917,2]
[329610346,1718503843591,-500.0,0.00021917,2]
[329610347,1718503844141,-150.18135751,0.00021917,2]
[329610348,1718503844498,-349.81864249,0.00021917,2]
[329610349,1718503844510,-500.0,0.00021917,2]
[329610350,1718503844520,-578.07857369,0.00021917,2]
[329610351,1718503844531,-500.0,0.00021917,2]
[329610352,1718503844568,-500.0,0.00021917,2]
[329610353,1718503844600,-500.0,0.00021917,2]
[329610354,1718503844613,-500.0,0.00021917,2]
[329610355,1718503844624,-500.0,0.00021917,2]
[329610356,1718503844641,-500.0,0.00021917,2]
[329610357,1718503844658,-500.0,0.00021917,2]
[329610358,1718503844696,-500.0,0.00021917,2]
[329610359,1718503844709,-500.0,0.00021917,2]
[329610360,1718503844723,-500.0,0.00021917,2]
[329610361,1718503844750,-500.0,0.00021917,2]
[329610362,1718503844763,-500.0,0.00021917,2]
[329610363,1718503844783,-1490.83,0.00021917,2]
[329610364,1718503844805,-500.0,0.00021917,2]
[329610365,1718503844826,-500.0,0.00021917,2]
[329610366,1718503844853,-500.0,0.00021917,2]
[329610367,1718503844865,-500.0,0.00021917,2]
[329610368,1718503844903,-866.93,0.00021917,2]
[329610369,1718503844920,-500.0,0.00021917,2]
[329610370,1718503844969,-645.93,0.00021917,2]
[329610371,1718503844996,-500.0,0.00021917,2]
[329610372,1718503845026,-657.87,0.00021917,2]
[329610373,1718503845050,-500.0,0.00021917,2]
[329610374,1718503845117,-500.0,0.00021917,2]
[329610375,1718503845137,-500.0,0.00021917,2]
[329610376,1718503845157,-500.0,0.00021917,2]
[329610377,1718503845177,-507.61121456,0.00021917,2]
[329610378,1718503845197,-500.0,0.00021917,2]
[329610379,1718503845226,-500.0,0.00021917,2]
[329610380,1718503845244,-500.0,0.00021917,2]
[329610381,1718503845293,-522.2514175,0.00021917,2]
[329610382,1718503845328,-500.0,0.00021917,2]
[329610383,1718503845347,-500.0,0.00021917,2]
[329610384,1718503845360,-500.0,0.00021917,2]
[329610385,1718503845375,-500.0,0.00021917,2]
[329610386,1718503845386,-500.0,0.00021917,2]
[329610387,1718503845427,-505.99295306,0.00021917,2]
[329610388,1718503845450,-500.0,0.00021917,2]
[329610389,1718503845464,-649.17356192,0.00021917,2]
[329610390,1718503845493,-500.0,0.00021917,2]
[329610391,1718503845517,-500.0,0.00021917,2]
[329610392,1718503845538,-500.0,0.00021917,2]
[329610393,1718503845593,-500.0,0.00021917,2]
[329610394,1718503845629,-500.0,0.00021917,2]
[329610395,1718503845650,-164.29483989,0.00021917,2]
[329610402,1718503848088,-335.70516011,0.00021917,2]
[329610403,1718503848100,-231.75151333,0.00021917,2]
[329610404,1718503849511,-268.24848667,0.00021917,2]
[329610405,1718503849527,-500.0,0.00021917,2]
[329610406,1718503849555,-746.06,0.00021917,2]
[329610407,1718503849573,-500.0,0.00021917,2]
[329610408,1718503849588,-500.0,0.00021917,2]
[329610409,1718503849610,-500.0,0.00021917,2]
[329610410,1718503849629,-500.0,0.00021917,2]
[329610411,1718503849668,-500.0,0.00021917,2]
[329610412,1718503849690,-500.0,0.00021917,2]
[329610413,1718503849712,-500.0,0.00021917,2]
[329610414,1718503849734,-500.0,0.00021917,2]
[329610415,1718503849746,-500.0,0.00021917,2]
[329610416,1718503849758,-500.0,0.00021917,2]
[329610417,1718503849771,-500.0,0.00021917,2]
[329610418,1718503849783,-500.0,0.00021917,2]
[329610419,1718503849794,-500.0,0.00021917,2]
[329610420,1718503849806,-500.0,0.00021917,2]
[329610421,1718503849841,-500.0,0.00021917,2]
[329610422,1718503849861,-500.0,0.00021917,2]
[329610423,1718503849885,-500.0,0.00021917,2]
[329610424,1718503849901,-500.0,0.00021917,2]
[329610425,1718503849912,-500.0,0.00021917,2]
[329610426,1718503849926,-802.48,0.00021917,2]
[329610427,1718503849940,-500.0,0.00021917,2]
[329610428,1718503849952,-500.0,0.00021917,2]
[329610429,1718503849980,-462.2032894,0.00021917,2]
[329610430,1718503850020,-500.0,0.00021917,2]
[329610431,1718503850045,-500.0,0.00021917,2]
[329610432,1718503850078,-873.19,0.00021917,2]
[329610433,1718503850094,-500.0,0.00021917,2]
[329610434,1718503850113,-500.0,0.00021917,2]
[329610435,1718503850135,-503.36823151,0.00021917,2]
[329610436,1718503850150,-500.0,0.00021917,2]
[329610437,1718503850160,-500.0,0.00021917,2]
[329610438,1718503850190,-500.0,0.00021917,2]
[329610439,1718503850213,-500.0,0.00021917,2]
[329610440,1718503850246,-500.0,0.00021917,2]
[329610441,1718503850258,-500.0,0.00021917,2]
[329610442,1718503850270,-500.0,0.00021917,2]
[329610443,1718503850281,-500.0,0.00021917,2]
[329610444,1718503850303,-500.0,0.00021917,2]
[329610445,1718503850318,-522.50861416,0.00021917,2]
[329610446,1718503850346,-500.0,0.00021917,2]
[329610447,1718503850357,-238.32024321,0.00021917,2]
[329610448,1718503850369,-500.0,0.00021917,2]
[329610449,1718503850392,-500.0,0.00021917,2]
[329610450,1718503850403,-829.72,0.00021917,2]
[329610451,1718503850414,-500.0,0.00021917,2]
[329610452,1718503850425,-500.0,0.00021917,2]
[329610453,1718503850435,-250.0,0.00021917,2]
[329610454,1718503850447,-158.78969138,0.00021917,2]
[329610455,1718503850458,-500.0,0.00021917,2]
[329610456,1718503850469,-500.0,0.00021917,2]
[329610457,1718503850480,-517.52627094,0.00021917,2]
[329610458,1718503850495,-500.0,0.00021917,2]
[329610459,1718503850508,-739.7,0.00021917,2]
[329610460,1718503850520,-500.0,0.00021917,2]
[329610461,1718503850532,-500.0,0.00021917,2]
[329610462,1718503850552,-500.0,0.00021917,2]
[329610463,1718503850577,-500.0,0.00021917,2]
[329610464,1718503850588,-621.99,0.00021917,2]
[329610465,1718503850612,-500.0,0.00021917,2]
[329610466,1718503850633,-499.17297707,0.00021917,2]
[329610467,1718503850649,-500.0,0.00021917,2]
[329610468,1718503850688,-500.0,0.00021917,2]
[329610469,1718503850699,-500.0,0.00021917,2]
[329610470,1718503850727,-500.0,0.00021917,2]
[329610471,1718503850748,-500.0,0.00021917,2]
[329610472,1718503850759,-500.0,0.00021917,2]
[329610473,1718503850771,-500.0,0.00021917,2]
[329610474,1718503850787,-500.0,0.00021917,2]
[329610475,1718503850798,-500.0,0.00021917,2]
[329610476,1718503850816,-500.0,0.00021917,2]
[329610477,1718503850826,-500.0,0.00021917,2]
[329610478,1718503850839,-500.0,0.00021917,2]
[329610479,1718503850851,-562.6617169,0.00021917,2]
[329610480,1718503850863,-500.0,0.00021917,2]
[329610481,1718503850880,-500.0,0.00021917,2]
[329610482,1718503850894,-529.72,0.00021917,2]
[329610483,1718503850905,-599.15,0.00021917,2]
[329610484,1718503850916,-509.69328082,0.00021917,2]
[329610485,1718503850928,-527.76158889,0.00021917,2]
[329610486,1718503850939,-500.0,0.00021917,2]
[329610487,1718503850959,-500.0,0.00021917,2]
[329610488,1718503850984,-500.0,0.00021917,2]
[329610489,1718503850997,-500.0,0.00021917,2]
[329610490,1718503851009,-500.0,0.00021917,2]
[329610491,1718503851022,-500.0,0.00021917,2]
[329610492,1718503851033,-500.0,0.00021917,2]
[329610493,1718503851048,-500.0,0.00021917,2]
[329610494,1718503851060,-500.0,0.00021917,2]
[329610495,1718503851075,-1093.79714232,0.00021917,2]
[329610496,1718503851091,-500.0,0.00021917,2]
[329610497,1718503851131,-500.0,0.00021917,2]
[329610498,1718503851152,-489.79562767,0.00021917,2]
[329610499,1718503851171,-500.0,0.00021917,2]
[329610500,1718503851206,-573.26,0.00021917,2]
[329610501,1718503851225,-500.0,0.00021917,2]
[329610502,1718503851257,-500.0,0.00021917,2]
[329610504,1718503851273,-406.45592601,0.00021917,2]
[329610505,1718503851284,-500.0,0.00021917,2]
[329610506,1718503851298,-1323.98,0.00021917,2]
[329610507,1718503851326,-500.0,0.00021917,2]
[329610508,1718503851339,-500.0,0.00021917,2]
[329610509,1718503851362,-897.86,0.00021917,2]
[329610510,1718503851387,-552.43396617,0.00021917,2]
[329610511,1718503851398,-504.12299262,0.00021917,2]
[329610512,1718503851426,-500.0,0.00021917,2]
[329610513,1718503851470,-500.0,0.00021917,2]
[329610514,1718503851483,-500.0,0.00021917,2]
[329610515,1718503851503,-197.78451556,0.00021917,2]
[329610516,1718503851530,-500.0,0.00021917,2]
[329610517,1718503851545,-500.0,0.00021917,2]
[329610518,1718503851557,-788.14,0.00021917,2]
[329610519,1718503851577,-500.0,0.00021917,2]
[329610520,1718503851588,-500.0,0.00021917,2]
[329610521,1718503851607,-500.0,0.00021917,2]
[329610523,1718503851618,-1029.73,0.00021917,2]
[329610525,1718503851631,-500.0,0.00021917,2]
[329610526,1718503851642,-500.0,0.00021917,2]
[329610527,1718503851652,-556.4,0.00021917,2]
[329610528,1718503851664,-500.0,0.00021917,2]
[329610529,1718503851679,-762.42,0.00021917,2]
[329610530,1718503851693,-500.0,0.00021917,2]
[329610531,1718503851728,-500.0,0.00021917,2]
[329610532,1718503851749,-500.0,0.00021917,2]
[329610533,1718503851767,-500.0,0.00021917,2]
[329610534,1718503851781,-500.0,0.00021917,2]
[329610535,1718503851793,-500.0,0.00021917,2]
[329610536,1718503851810,-500.0,0.00021917,2]
[329610537,1718503851821,-500.0,0.00021917,2]
[329610538,1718503851865,-501.82210209,0.00021917,2]
[329610539,1718503851878,-745.99,0.00021917,2]
[329610540,1718503851896,-500.0,0.00021917,2]
[329610541,1718503851921,-500.0,0.00021917,2]
[329610542,1718503851956,-727.28,0.00021917,2]
[329610543,1718503851971,-500.0,0.00021917,2]
[329610544,1718503852009,-500.0,0.00021917,2]
[329610546,1718503852022,-500.0,0.00021917,2]
[329610548,1718503852033,-500.0,0.00021917,2]
[329610550,1718503852044,-500.0,0.00021917,2]
[329610552,1718503852068,-500.0,0.00021917,2]
[329610555,1718503852080,-500.0,0.00021917,2]
[329610557,1718503852099,-500.0,0.00021917,2]
[329610559,1718503852110,-500.0,0.00021917,2]
[329610560,1718503852121,-1186.74,0.00021917,2]
[329610561,1718503852132,-500.0,0.00021917,2]
[329610562,1718503852143,-500.0,0.00021917,2]
[329610563,1718503852153,-500.0,0.00021917,2]
[329610564,1718503852165,-500.0,0.00021917,2]
[329610565,1718503852176,-500.0,0.00021917,2]
[329610566,1718503852194,-500.0,0.00021917,2]
[329610567,1718503852211,-500.0,0.00021917,2]
[329610569,1718503852224,-500.0,0.00021917,2]
[329610571,1718503852263,-500.0,0.00021917,2]
[329610573,1718503852276,-543.39,0.00021917,2]
[329610575,1718503852288,-822.77,0.00021917,2]
[329610576,1718503852302,-500.0,0.00021917,2]
[329610577,1718503852314,-185.62681581,0.00021917,2]
[329610578,1718503852336,-500.0,0.00021917,2]
[329610579,1718503852348,-500.0,0.00021917,2]
[329610580,1718503852362,-500.0,0.00021917,2]
[329610581,1718503852375,-500.0,0.00021917,2]
[329610582,1718503852386,-577.88227978,0.00021917,2]
[329610583,1718503852401,-500.0,0.00021917,2]
[329610584,1718503852414,-1419.31,0.00021917,2]
[329610585,1718503852426,-2507.1,0.00021917,2]
[329610586,1718503852437,-1225.77,0.00021917,2]
[329610587,1718503852461,-500.0,0.00021917,2]
[329610588,1718503852481,-502.51454561,0.00021917,2]
[329610589,1718503852494,-1114.91,0.00021917,2]